[Event "Schack-SM 2022: Veteran-SM +65"]
[Site "Fyrishov, Idrottsgatan 2, Uppsala, Sweden"]
[Date "2022.07.06"]
[Round "5.5"]
[White "Marttala, Thomas"]
[Black "Hedin, Gunnar"]
[Result "1/2-1/2"]
[TimeControl "90 minutes for 40 moves + 30 minutes for the rest of the game + 30 seconds per move from move one."]
[WhiteFideId "1701118"]
[BlackFideId "1712381"]
[WhiteElo "2164"]
[BlackElo "2051"]

1. e4 {[%clk 01:30:51]} {[%emt 00:00:08]} e6 {[%clk 01:30:54]} {[%emt
00:00:07]} 2. d4 {[%clk 01:31:13]} {[%emt 00:00:07]} d5 {[%clk 01:31:16]}
{[%emt 00:00:10]} 3. Nc3 {[%clk 01:31:35]} {[%emt 00:00:08]} Bb4 {[%clk
01:31:21]} {[%emt 00:00:25]} 4. e5 {[%clk 01:31:55]} {[%emt 00:00:10]} c5
{[%clk 01:31:32]} {[%emt 00:00:20]} 5. Bd2 {[%clk 01:32:16]} {[%emt 00:00:08]}
Ne7 {[%clk 01:30:13]} {[%emt 00:01:50]} 6. a3 {[%clk 01:32:15]} {[%emt
00:00:31]} Bxc3 {[%clk 01:28:24]} {[%emt 00:02:19]} 7. Bxc3 {[%clk 01:32:19]}
{[%emt 00:00:24]} Nbc6 {[%clk 01:26:11]} {[%emt 00:02:45]} 8. Nf3 {[%clk
01:28:26]} {[%emt 00:04:22]} cxd4 {[%clk 01:24:29]} {[%emt 00:02:13]} 9. Nxd4
{[%clk 01:28:45]} {[%emt 00:00:10]} O-O {[%clk 01:11:48]} {[%emt 00:13:12]} 10.
Nf3 {[%clk 00:49:35]} {[%emt 00:39:39]} Ng6 {[%clk 00:53:21]} {[%emt 00:18:58]}
11. Bd3 {[%clk 00:44:19]} {[%emt 00:05:45]} d4 {[%clk 00:50:25]} {[%emt
00:03:27]} 12. Bb4 {[%clk 00:36:52]} {[%emt 00:07:57]} Nxb4 {[%clk 00:13:38]}
{[%emt 00:37:17]} 13. Bxg6 {[%clk 00:36:45]} {[%emt 00:00:36]} Nc6 {[%clk
00:11:09]} {[%emt 00:03:00]} 14. Be4 {[%clk 00:11:39]} {[%emt 00:25:35]} Nxe5
{[%clk 00:11:28]} {[%emt 00:00:12]} 15. Nxe5 {[%clk 00:11:59]} {[%emt
00:00:10]} Qa5+ {[%clk 00:11:55]} {[%emt 00:00:04]} 16. c3 {[%clk 00:12:22]}
{[%emt 00:00:06]} Qxe5 {[%clk 00:11:33]} {[%emt 00:00:52]} 17. Qxd4 {[%clk
00:12:45]} {[%emt 00:00:07]} Qxd4 {[%clk 00:10:45]} {[%emt 00:01:18]} 18. cxd4
{[%clk 00:13:06]} {[%emt 00:00:08]} Bd7 {[%clk 00:10:38]} {[%emt 00:00:39]} 19.
Rc1 {[%clk 00:12:52]} {[%emt 00:00:44]} Rac8 {[%clk 00:10:36]} {[%emt
00:00:33]} 20. Kd2 {[%clk 00:13:10]} {[%emt 00:00:11]} Bc6 {[%clk 00:06:45]}
{[%emt 00:04:22]} 21. Bxc6 {[%clk 00:12:44]} {[%emt 00:00:55]} bxc6 {[%clk
00:06:34]} {[%emt 00:00:41]} 22. Rc5 {[%clk 00:11:01]} {[%emt 00:02:12]} Rfd8
{[%clk 00:06:04]} {[%emt 00:01:02]} 23. Ke3 {[%clk 00:10:47]} {[%emt 00:00:43]}
Rd5 {[%clk 00:03:39]} {[%emt 00:02:55]} 24. Rhc1 {[%clk 00:10:42]} {[%emt
00:00:34]} Rxc5 {[%clk 00:04:06]} {[%emt 00:00:05]} 25. Rxc5 {[%clk 00:10:55]}
{[%emt 00:00:16]} Kf8 {[%clk 00:04:31]} {[%emt 00:00:05]} 1/2-1/2

[Event "Schack-SM 2022: Veteran-SM +65"]
[Site "Fyrishov, Idrottsgatan 2, Uppsala, Sweden"]
[Date "2022.07.06"]
[Round "5.1"]
[White "Gillefalk, Bjorn"]
[Black "Dolata, Henryk"]
[Result "1-0"]
[TimeControl "90 minutes for 40 moves + 30 minutes for the rest of the game + 30 seconds per move from move one."]
[WhiteFideId "1708821"]
[BlackFideId "1709046"]
[WhiteElo "2047"]
[BlackElo "2055"]

1. e4 {[%clk 01:30:30]} {[%emt 00:00:29]} e6 {[%clk 01:30:41]} {[%emt
00:00:20]} 2. d4 {[%clk 01:30:52]} {[%emt 00:00:08]} d5 {[%clk 01:31:03]}
{[%emt 00:00:08]} 3. e5 {[%clk 01:31:14]} {[%emt 00:00:08]} b6 {[%clk
01:30:59]} {[%emt 00:00:34]} 4. c3 {[%clk 01:24:08]} {[%emt 00:07:36]} Qd7
{[%clk 01:29:23]} {[%emt 00:02:06]} 5. Nf3 {[%clk 01:18:52]} {[%emt 00:05:46]}
Ne7 {[%clk 01:27:58]} {[%emt 00:01:55]} 6. h4 {[%clk 01:17:25]} {[%emt
00:01:57]} h5 {[%clk 01:25:40]} {[%emt 00:02:48]} 7. Nbd2 {[%clk 01:12:34]}
{[%emt 00:05:21]} c5 {[%clk 00:56:52]} {[%emt 00:29:18]} 8. Rh3 {[%clk
00:59:56]} {[%emt 00:13:08]} cxd4 {[%clk 00:50:57]} {[%emt 00:06:25]} 9. cxd4
{[%clk 00:48:13]} {[%emt 00:12:13]} Ba6 {[%clk 00:42:50]} {[%emt 00:08:37]} 10.
Bxa6 {[%clk 00:43:15]} {[%emt 00:05:30]} Nxa6 {[%clk 00:42:47]} {[%emt
00:00:33]} 11. Qe2 {[%clk 00:41:42]} {[%emt 00:02:01]} Nb4 {[%clk 00:42:05]}
{[%emt 00:01:11]} 12. Kf1 {[%clk 00:41:34]} {[%emt 00:00:38]} Nf5 {[%clk
00:42:08]} {[%emt 00:00:27]} 13. Nb1 {[%clk 00:39:32]} {[%emt 00:02:33]} Be7
{[%clk 00:36:10]} {[%emt 00:06:28]} 14. Nc3 {[%clk 00:39:25]} {[%emt 00:00:37]}
Rc8 {[%clk 00:35:31]} {[%emt 00:01:08]} 15. Bg5 {[%clk 00:37:20]} {[%emt
00:02:35]} Rc4 {[%clk 00:27:19]} {[%emt 00:08:43]} 16. Rd1 {[%clk 00:34:11]}
{[%emt 00:03:39]} Nc6 {[%clk 00:14:06]} {[%emt 00:13:44]} 17. Be3 {[%clk
00:29:26]} {[%emt 00:05:14]} g6 {[%clk 00:13:37]} {[%emt 00:00:59]} 18. Qd2
{[%clk 00:26:55]} {[%emt 00:03:01]} Na5 {[%clk 00:13:28]} {[%emt 00:00:39]} 19.
Bg5 {[%clk 00:26:37]} {[%emt 00:00:47]} Rc7 {[%clk 00:13:26]} {[%emt 00:00:32]}
20. Bxe7 {[%clk 00:26:36]} {[%emt 00:00:32]} Qxe7 {[%clk 00:12:36]} {[%emt
00:01:19]} 21. Nb5 {[%clk 00:19:05]} {[%emt 00:08:02]} Rc8 {[%clk 00:13:01]}
{[%emt 00:00:04]} 22. Ng5 {[%clk 00:18:03]} {[%emt 00:01:32]} Nc4 {[%clk
00:12:11]} {[%emt 00:01:19]} 23. Qe2 {[%clk 00:17:02]} {[%emt 00:01:31]} a6
{[%clk 00:11:47]} {[%emt 00:00:55]} 24. Nd6+ {[%clk 00:16:36]} {[%emt
00:00:56]} Ncxd6 {[%clk 00:10:46]} {[%emt 00:01:31]} 25. exd6 {[%clk 00:16:57]}
{[%emt 00:00:09]} Qxd6 {[%clk 00:10:42]} {[%emt 00:00:34]} 26. Qxa6 {[%clk
00:16:37]} {[%emt 00:00:51]} O-O {[%clk 00:10:50]} {[%emt 00:00:22]} 27. Rb3
{[%clk 00:13:37]} {[%emt 00:03:30]} Rc2 {[%clk 00:10:02]} {[%emt 00:01:17]} 28.
Qxb6 {[%clk 00:13:08]} {[%emt 00:01:00]} Qf4 {[%clk 00:10:27]} {[%emt
00:00:03]} 29. Nf3 {[%clk 00:11:26]} {[%emt 00:02:13]} Rfc8 {[%clk 00:08:36]}
{[%emt 00:02:21]} 30. Qb5 {[%clk 00:07:29]} {[%emt 00:04:28]} Rxf2+ {[%clk
00:02:37]} {[%emt 00:06:29]} 31. Kxf2 {[%clk 00:07:28]} {[%emt 00:00:31]} Rc2+
{[%clk 00:03:06]} {[%emt 00:00:01]} 32. Kg1 {[%clk 00:06:10]} {[%emt 00:01:48]}
Nxh4 {[%clk 00:02:59]} {[%emt 00:00:36]} 33. Qb8+ {[%clk 00:06:24]} {[%emt
00:00:17]} Qxb8 {[%clk 00:03:20]} {[%emt 00:00:10]} 34. Rxb8+ {[%clk 00:06:52]}
{[%emt 00:00:01]} 1-0

[Event "Schack-SM 2022: Veteran-SM +65"]
[Site "Fyrishov, Idrottsgatan 2, Uppsala, Sweden"]
[Date "2022.07.06"]
[Round "5.2"]
[White "Soderberg, Per"]
[Black "Lagerborg, Krister"]
[Result "0-1"]
[TimeControl "90 minutes for 40 moves + 30 minutes for the rest of the game + 30 seconds per move from move one."]
[WhiteTitle "CM"]
[WhiteFideId "1702904"]
[BlackFideId "1712411"]
[WhiteElo "2111"]
[BlackElo "2138"]

1. e4 {[%clk 01:30:57]} {[%emt 00:00:03]} c5 {[%clk 01:30:55]} {[%emt
00:00:06]} 2. Nf3 {[%clk 01:31:19]} {[%emt 00:00:08]} d6 {[%clk 01:31:17]}
{[%emt 00:00:07]} 3. Bb5+ {[%clk 01:31:39]} {[%emt 00:00:10]} Nd7 {[%clk
01:31:39]} {[%emt 00:00:08]} 4. O-O {[%clk 01:31:58]} {[%emt 00:00:12]} a6
{[%clk 01:32:03]} {[%emt 00:00:06]} 5. Bxd7+ {[%clk 01:30:56]} {[%emt
00:01:32]} Bxd7 {[%clk 01:32:23]} {[%emt 00:00:10]} 6. c3 {[%clk 01:29:53]}
{[%emt 00:01:33]} e6 {[%clk 01:29:43]} {[%emt 00:03:11]} 7. Re1 {[%clk
01:29:02]} {[%emt 00:01:20]} Ne7 {[%clk 01:29:13]} {[%emt 00:01:01]} 8. d4
{[%clk 01:27:12]} {[%emt 00:02:20]} Ng6 {[%clk 01:26:49]} {[%emt 00:02:53]} 9.
a4 {[%clk 01:22:01]} {[%emt 00:05:41]} b5 {[%clk 01:25:09]} {[%emt 00:02:10]}
10. axb5 {[%clk 01:21:59]} {[%emt 00:00:31]} axb5 {[%clk 01:25:32]} {[%emt
00:00:08]} 11. Rxa8 {[%clk 01:21:33]} {[%emt 00:00:56]} Qxa8 {[%clk 01:25:54]}
{[%emt 00:00:08]} 12. Na3 {[%clk 01:21:07]} {[%emt 00:00:56]} Be7 {[%clk
01:24:42]} {[%emt 00:01:41]} 13. e5 {[%clk 01:10:44]} {[%emt 00:10:54]} Bc6
{[%clk 01:17:00]} {[%emt 00:08:12]} 14. d5 {[%clk 01:03:38]} {[%emt 00:07:36]}
Bxd5 {[%clk 01:09:09]} {[%emt 00:08:21]} 15. exd6 {[%clk 01:03:19]} {[%emt
00:00:49]} Bxd6 {[%clk 01:01:21]} {[%emt 00:08:17]} 16. c4 {[%clk 00:52:59]}
{[%emt 00:10:50]} bxc4 {[%clk 01:00:04]} {[%emt 00:01:49]} 17. Nb5 {[%clk
00:48:16]} {[%emt 00:05:12]} Bb8 {[%clk 00:59:39]} {[%emt 00:00:55]} 18. Re3
{[%clk 00:47:57]} {[%emt 00:00:48]} O-O {[%clk 00:58:06]} {[%emt 00:02:04]} 19.
Ne1 {[%clk 00:45:31]} {[%emt 00:02:56]} Qb7 {[%clk 00:53:35]} {[%emt 00:05:00]}
20. Nc3 {[%clk 00:44:42]} {[%emt 00:01:20]} Bc6 {[%clk 00:51:04]} {[%emt
00:03:01]} 21. Rh3 {[%clk 00:41:48]} {[%emt 00:03:23]} h6 {[%clk 00:48:58]}
{[%emt 00:02:36]} 22. Qg4 {[%clk 00:40:02]} {[%emt 00:02:15]} Bd5 {[%clk
00:45:49]} {[%emt 00:03:39]} 23. f4 {[%clk 00:37:05]} {[%emt 00:03:27]} Qe7
{[%clk 00:43:58]} {[%emt 00:02:21]} 24. Nc2 {[%clk 00:36:01]} {[%emt 00:01:34]}
Qf6 {[%clk 00:41:44]} {[%emt 00:02:44]} 25. Nxd5 {[%clk 00:24:57]} {[%emt
00:11:35]} exd5 {[%clk 00:41:53]} {[%emt 00:00:21]} 26. f5 {[%clk 00:22:00]}
{[%emt 00:03:26]} Ne5 {[%clk 00:41:03]} {[%emt 00:01:20]} 27. Qh5 {[%clk
00:22:21]} {[%emt 00:00:08]} Nd3 {[%clk 00:39:15]} {[%emt 00:02:19]} 28. Bxh6
{[%clk 00:20:42]} {[%emt 00:02:10]} Qxh6 {[%clk 00:38:58]} {[%emt 00:00:47]} 29.
Qd1 {[%clk 00:20:27]} {[%emt 00:00:44]} Qf4 {[%clk 00:37:26]} {[%emt 00:02:02]}
30. Ne3 {[%clk 00:19:21]} {[%emt 00:01:36]} Qf2+ {[%clk 00:36:20]} {[%emt
00:01:36]} 31. Kh1 {[%clk 00:19:46]} {[%emt 00:00:06]} Qxe3 {[%clk 00:35:32]}
{[%emt 00:01:18]} 0-1

[Event "Schack-SM 2022: Veteran-SM +65"]
[Site "Fyrishov, Idrottsgatan 2, Uppsala, Sweden"]
[Date "2022.07.05"]
[Round "4.1"]
[White "Dolata, Henryk"]
[Black "Soderberg, Per"]
[Result "1/2-1/2"]
[TimeControl "90 minutes for 40 moves + 30 minutes for the rest of the game + 30 seconds per move from move one."]
[BlackTitle "CM"]
[WhiteFideId "1709046"]
[BlackFideId "1702904"]
[WhiteElo "2055"]
[BlackElo "2111"]

1. e4 {[%clk 01:30:57]} {[%emt 00:00:02]} c5 {[%clk 01:30:54]} {[%emt
00:00:07]} 2. c3 {[%clk 01:31:17]} {[%emt 00:00:09]} Nf6 {[%clk 01:30:49]}
{[%emt 00:00:35]} 3. e5 {[%clk 01:31:30]} {[%emt 00:00:17]} Nd5 {[%clk
01:31:13]} {[%emt 00:00:06]} 4. d4 {[%clk 01:31:38]} {[%emt 00:00:21]} cxd4
{[%clk 01:31:18]} {[%emt 00:00:26]} 5. cxd4 {[%clk 01:31:56]} {[%emt 00:00:12]}
e6 {[%clk 01:31:42]} {[%emt 00:00:05]} 6. Nf3 {[%clk 01:25:47]} {[%emt
00:06:40]} d6 {[%clk 01:27:29]} {[%emt 00:04:42]} 7. Bc4 {[%clk 01:22:03]}
{[%emt 00:04:14]} Be7 {[%clk 01:22:07]} {[%emt 00:05:53]} 8. Qe2 {[%clk
01:21:09]} {[%emt 00:01:24]} O-O {[%clk 01:17:48]} {[%emt 00:04:50]} 9. O-O
{[%clk 01:20:20]} {[%emt 00:01:18]} Nc6 {[%clk 01:16:48]} {[%emt 00:01:29]} 10.
Qe4 {[%clk 01:10:40]} {[%emt 00:10:10]} Ndb4 {[%clk 01:07:42]} {[%emt
00:09:36]} 11. exd6 {[%clk 01:02:04]} {[%emt 00:09:06]} Qxd6 {[%clk 01:07:22]}
{[%emt 00:00:50]} 12. Bf4 {[%clk 00:53:25]} {[%emt 00:09:09]} Qd8 {[%clk
01:06:04]} {[%emt 00:01:48]} 13. Nc3 {[%clk 00:50:07]} {[%emt 00:03:48]} Na5
{[%clk 01:04:34]} {[%emt 00:02:00]} 14. Bb5 {[%clk 00:44:45]} {[%emt 00:05:53]}
a6 {[%clk 01:01:04]} {[%emt 00:03:59]} 15. Ba4 {[%clk 00:38:17]} {[%emt
00:06:58]} Bd7 {[%clk 00:53:45]} {[%emt 00:07:49]} 16. Bxd7 {[%emt 00:16:18]}
1/2-1/2

[Event "Schack-SM 2022: Veteran-SM +65"]
[Site "Fyrishov, Idrottsgatan 2, Uppsala, Sweden"]
[Date "2022.07.05"]
[Round "4.2"]
[White "Westin, Ake"]
[Black "Gillefalk, Bjorn"]
[Result "0-1"]
[TimeControl "90 minutes for 40 moves + 30 minutes for the rest of the game + 30 seconds per move from move one."]
[WhiteFideId "1712888"]
[BlackFideId "1708821"]
[WhiteElo "1994"]
[BlackElo "2047"]

1. e4 {[%clk 01:30:56]} {[%emt 00:00:03]} c5 {[%clk 01:30:28]} {[%emt
00:00:32]} 2. Nc3 {[%clk 01:30:37]} {[%emt 00:00:48]} e6 {[%clk 01:28:24]}
{[%emt 00:02:36]} 3. g3 {[%clk 01:29:00]} {[%emt 00:02:06]} d5 {[%clk
01:24:22]} {[%emt 00:04:32]} 4. Bg2 {[%clk 01:24:47]} {[%emt 00:04:42]} dxe4
{[%clk 01:19:41]} {[%emt 00:05:13]} 5. Nxe4 {[%clk 01:24:41]} {[%emt 00:00:36]}
Be7 {[%clk 01:19:15]} {[%emt 00:00:57]} 6. Ne2 {[%clk 01:18:06]} {[%emt
00:07:04]} Nf6 {[%clk 01:17:06]} {[%emt 00:02:39]} 7. d4 {[%clk 01:15:25]}
{[%emt 00:03:11]} Nxe4 {[%clk 01:11:03]} {[%emt 00:06:33]} 8. Bxe4 {[%clk
01:13:37]} {[%emt 00:02:18]} cxd4 {[%clk 00:58:21]} {[%emt 00:13:12]} 9. Qxd4
{[%clk 01:09:58]} {[%emt 00:04:09]} O-O {[%clk 00:54:48]} {[%emt 00:04:03]} 10.
Qxd8 {[%clk 01:04:35]} {[%emt 00:05:53]} Rxd8 {[%clk 00:55:05]} {[%emt
00:00:13]} 11. Be3 {[%clk 01:04:23]} {[%emt 00:00:42]} Nc6 {[%clk 00:50:00]}
{[%emt 00:05:36]} 12. O-O {[%clk 00:58:43]} {[%emt 00:06:09]} e5 {[%clk
00:48:36]} {[%emt 00:01:54]} 13. Nc3 {[%clk 00:54:23]} {[%emt 00:04:50]} Be6
{[%clk 00:37:26]} {[%emt 00:11:40]} 14. Rfd1 {[%clk 00:50:55]} {[%emt
00:03:57]} f5 {[%clk 00:34:49]} {[%emt 00:03:08]} 15. Bd5 {[%clk 00:47:36]}
{[%emt 00:03:49]} Kf7 {[%clk 00:34:42]} {[%emt 00:00:36]} 16. Bxe6+ {[%clk
00:45:18]} {[%emt 00:02:49]} Kxe6 {[%clk 00:34:58]} {[%emt 00:00:13]} 17. a3
{[%clk 00:42:32]} {[%emt 00:03:17]} g5 {[%clk 00:32:29]} {[%emt 00:02:59]} 18.
f3 {[%clk 00:39:59]} {[%emt 00:03:03]} h5 {[%clk 00:25:31]} {[%emt 00:07:28]}
19. Nb5 {[%clk 00:38:24]} {[%emt 00:02:04]} Rxd1+ {[%clk 00:23:25]} {[%emt
00:02:37]} 20. Rxd1 {[%clk 00:38:43]} {[%emt 00:00:11]} Rc8 {[%clk 00:23:43]}
{[%emt 00:00:11]} 21. Rd2 {[%clk 00:32:54]} {[%emt 00:06:21]} a6 {[%clk
00:22:22]} {[%emt 00:01:51]} 22. Nc3 {[%clk 00:30:12]} {[%emt 00:03:12]} Na5
{[%clk 00:22:11]} {[%emt 00:00:41]} 23. Rd3 {[%clk 00:29:35]} {[%emt 00:01:06]}
Nc4 {[%clk 00:22:08]} {[%emt 00:00:34]} 24. Bc1 {[%clk 00:29:45]} {[%emt
00:00:19]} g4 {[%clk 00:22:12]} {[%emt 00:00:26]} 25. Kf1 {[%clk 00:28:31]}
{[%emt 00:01:44]} gxf3 {[%clk 00:21:44]} {[%emt 00:00:59]} 26. Rxf3 {[%clk
00:28:52]} {[%emt 00:00:09]} e4 {[%clk 00:21:18]} {[%emt 00:00:56]} 27. Rf2
{[%clk 00:28:43]} {[%emt 00:00:37]} Bf6 {[%clk 00:18:03]} {[%emt 00:03:45]} 28.
Ne2 {[%clk 00:27:57]} {[%emt 00:01:17]} Bxb2 {[%clk 00:11:59]} {[%emt
00:06:35]} 29. Bxb2 {[%clk 00:26:59]} {[%emt 00:01:26]} Nxb2 {[%clk 00:12:26]}
{[%emt 00:00:05]} 30. Nd4+ {[%clk 00:25:51]} {[%emt 00:01:38]} Ke5 {[%clk
00:12:18]} {[%emt 00:00:38]} 31. Nxf5 {[%clk 00:21:24]} {[%emt 00:04:57]} Nd1
{[%clk 00:12:08]} {[%emt 00:00:39]} 32. Ne7 {[%clk 00:19:55]} {[%emt 00:01:59]}
Rxc2 {[%clk 00:09:12]} {[%emt 00:03:27]} 33. Ng6+ {[%clk 00:19:19]} {[%emt
00:01:05]} Kd4 {[%clk 00:09:08]} {[%emt 00:00:36]} 34. Rxc2 {[%clk 00:19:09]}
{[%emt 00:00:40]} Ne3+ {[%clk 00:09:33]} {[%emt 00:00:05]} 35. Ke2 {[%clk
00:19:27]} {[%emt 00:00:12]} Nxc2 {[%clk 00:09:58]} {[%emt 00:00:05]} 36. a4
{[%clk 00:19:13]} {[%emt 00:00:44]} Ne3 {[%clk 00:08:52]} {[%emt 00:01:36]} 37.
Nf4 {[%clk 00:17:28]} {[%emt 00:02:15]} Ng4 {[%clk 00:05:07]} {[%emt 00:04:15]}
38. h3 {[%clk 00:13:26]} {[%emt 00:04:32]} Nf6 {[%clk 00:05:33]} {[%emt
00:00:05]} 39. a5 {[%clk 00:13:23]} {[%emt 00:00:33]} Kc4 {[%clk 00:03:02]}
{[%emt 00:03:01]} 40. Ne6 {[%clk 00:13:04]} {[%emt 00:00:48]} Kb4 {[%clk
00:02:45]} {[%emt 00:00:47]} 41. Nd8 {[%clk 00:12:08]} {[%emt 00:01:27]} Kxa5
{[%clk 00:02:28]} {[%emt 00:00:47]} 42. Nxb7+ {[%clk 00:12:23]} {[%emt
00:00:14]} Kb6 {[%clk 00:01:41]} {[%emt 00:01:18]} 43. Nd6 {[%clk 00:12:26]}
{[%emt 00:00:26]} Kc5 {[%clk 00:01:23]} {[%emt 00:00:47]} 44. Nb7+ {[%clk
00:09:35]} {[%emt 00:03:22]} Kd4 {[%clk 00:00:48]} {[%emt 00:01:06]} 45. Na5
{[%clk 00:09:28]} {[%emt 00:00:37]} Nd5 {[%clk 00:29:27]} {[%emt 00:01:51]} 46.
Nb3+ {[%clk 00:34:54]} {[%emt 00:05:04]} Ke5 {[%clk 00:29:23]} {[%emt
00:00:34]} 47. Nd2 {[%clk 00:33:04]} {[%emt 00:02:20]} Ne7 {[%clk 00:28:28]}
{[%emt 00:01:25]} 48. Nb3 {[%clk 00:29:13]} {[%emt 00:04:21]} Nf5 {[%clk
00:21:48]} {[%emt 00:07:10]} 49. g4 {[%clk 00:26:57]} {[%emt 00:02:45]} Ng3+
{[%clk 00:20:01]} {[%emt 00:02:16]} 50. Kf2 {[%clk 00:27:02]} {[%emt 00:00:26]}
h4 {[%clk 00:20:22]} {[%emt 00:00:10]} 51. Ke3 {[%clk 00:25:43]} {[%emt
00:01:48]} Nf1+ {[%clk 00:20:17]} {[%emt 00:00:34]} 52. Kf2 {[%clk 00:24:13]}
{[%emt 00:02:00]} Nh2 {[%clk 00:20:21]} {[%emt 00:00:25]} 53. Ke3 {[%clk
00:22:49]} {[%emt 00:01:55]} Nf3 {[%clk 00:20:04]} {[%emt 00:00:48]} 54. Nc5
{[%clk 00:22:34]} {[%emt 00:00:46]} Ng5 {[%clk 00:18:51]} {[%emt 00:01:43]} 55.
Nxa6 {[%clk 00:21:48]} {[%emt 00:01:16]} Nxh3 {[%clk 00:19:16]} {[%emt
00:00:04]} 56. Nc5 {[%clk 00:19:42]} {[%emt 00:02:36]} Ng5 {[%clk 00:19:35]}
{[%emt 00:00:12]} 57. Nd7+ {[%clk 00:19:33]} {[%emt 00:00:39]} Kd6 {[%clk
00:16:54]} {[%emt 00:03:11]} 58. Nf6 {[%clk 00:17:04]} {[%emt 00:02:58]} h3
{[%clk 00:16:26]} {[%emt 00:00:59]} 59. Nh5 {[%clk 00:17:07]} {[%emt 00:00:26]}
Ke5 {[%clk 00:16:05]} {[%emt 00:00:53]} 60. Ng3 {[%clk 00:13:45]} {[%emt
00:03:51]} Ke6 {[%clk 00:10:06]} {[%emt 00:06:29]} 61. Kf4 {[%clk 00:11:43]}
{[%emt 00:02:31]} Kf6 {[%clk 00:07:57]} {[%emt 00:02:40]} 62. Nh5+ {[%clk
00:11:33]} {[%emt 00:00:40]} Ke6 {[%clk 00:05:23]} {[%emt 00:03:05]} 63. Ng7+
{[%clk 00:06:39]} {[%emt 00:05:24]} Kd5 {[%clk 00:04:58]} {[%emt 00:00:55]} 64.
Nf5 {[%clk 00:05:19]} {[%emt 00:01:50]} h2 {[%clk 00:04:52]} {[%emt 00:00:36]}
65. Ng3 {[%clk 00:05:38]} {[%emt 00:00:09]} Kd4 {[%clk 00:03:55]} {[%emt
00:01:28]} 66. Nh1 {[%clk 00:05:24]} {[%emt 00:00:42]} e3 {[%clk 00:03:35]}
{[%emt 00:00:52]} 67. Ke5+ Kxe5 0-1

[Event "Schack-SM 2022: Veteran-SM +65"]
[Site "Fyrishov, Idrottsgatan 2, Uppsala, Sweden"]
[Date "2022.07.05"]
[Round "4.3"]
[White "Bergstrom, Rolf"]
[Black "Franzen Hogberg, Thomas"]
[Result "1/2-1/2"]
[TimeControl "90 minutes for 40 moves + 30 minutes for the rest of the game + 30 seconds per move from move one."]
[WhiteTitle "FM"]
[WhiteFideId "1702386"]
[BlackFideId "1706039"]
[WhiteElo "2202"]
[BlackElo "1997"]

1. e4 {[%clk 01:30:52]} {[%emt 00:00:07]} e6 {[%clk 01:30:35]} {[%emt
00:00:25]} 2. d4 {[%clk 01:31:12]} {[%emt 00:00:10]} d5 {[%clk 01:30:59]}
{[%emt 00:00:06]} 3. e5 {[%clk 01:31:36]} {[%emt 00:00:06]} c5 {[%clk
01:31:22]} {[%emt 00:00:07]} 4. c3 {[%clk 01:32:01]} {[%emt 00:00:06]} Nc6
{[%clk 01:31:47]} {[%emt 00:00:05]} 5. Nf3 {[%clk 01:32:15]} {[%emt 00:00:15]}
Qb6 {[%clk 01:32:09]} {[%emt 00:00:09]} 6. Na3 {[%clk 01:30:23]} {[%emt
00:02:18]} cxd4 {[%clk 01:29:31]} {[%emt 00:03:11]} 7. cxd4 {[%clk 01:30:42]}
{[%emt 00:00:11]} Bb4+ {[%clk 01:29:53]} {[%emt 00:00:08]} 8. Bd2 {[%clk
01:30:49]} {[%emt 00:00:23]} a6 {[%clk 01:27:43]} {[%emt 00:02:42]} 9. Nc2
{[%clk 01:30:46]} {[%emt 00:00:30]} Bxd2+ {[%clk 01:22:11]} {[%emt 00:06:04]}
10. Qxd2 {[%clk 01:31:02]} {[%emt 00:00:13]} Qxb2 {[%clk 01:22:33]} {[%emt
00:00:09]} 11. Bd3 {[%clk 01:31:24]} {[%emt 00:00:07]} Qb6 {[%clk 01:22:59]}
{[%emt 00:00:05]} 12. O-O {[%clk 01:31:41]} {[%emt 00:00:13]} Nge7 {[%clk
01:17:27]} {[%emt 00:06:03]} 13. Qg5 {[%clk 01:29:09]} {[%emt 00:03:00]} Kf8
{[%clk 01:10:24]} {[%emt 00:07:34]} 14. Rab1 {[%clk 01:28:21]} {[%emt
00:01:17]} Qc7 {[%clk 01:10:42]} {[%emt 00:00:13]} 15. h4 {[%clk 01:18:54]}
{[%emt 00:09:58]} h6 {[%clk 01:04:43]} {[%emt 00:06:30]} 16. Qd2 {[%clk
01:14:50]} {[%emt 00:04:33]} f5 {[%clk 00:55:18]} {[%emt 00:09:55]} 17. h5
{[%clk 01:07:52]} {[%emt 00:07:25]} g5 {[%clk 00:53:50]} {[%emt 00:02:01]} 18.
hxg6 {[%clk 01:08:09]} {[%emt 00:00:13]} Nxg6 {[%clk 00:54:12]} {[%emt
00:00:09]} 19. g3 {[%clk 01:07:29]} {[%emt 00:01:08]} Qg7 {[%clk 00:50:19]}
{[%emt 00:04:23]} 20. Kg2 {[%clk 01:02:26]} {[%emt 00:05:34]} h5 {[%clk
00:39:08]} {[%emt 00:11:41]} 21. Rh1 {[%clk 01:01:44]} {[%emt 00:01:11]} h4
{[%clk 00:39:32]} {[%emt 00:00:07]} 22. Qg5 {[%clk 01:00:15]} {[%emt 00:01:57]}
Rh5 {[%clk 00:39:47]} {[%emt 00:00:16]} 23. Qd2 {[%clk 00:36:42]} {[%emt
00:24:02]} Rh8 {[%clk 00:31:43]} {[%emt 00:08:34]} 24. Rh3 {[%clk 00:30:30]}
{[%emt 00:06:41]} hxg3 {[%clk 00:28:27]} {[%emt 00:03:47]} 25. Rxh8+ {[%clk
00:29:57]} {[%emt 00:01:04]} Nxh8 {[%clk 00:28:43]} {[%emt 00:00:14]} 26. fxg3
{[%clk 00:30:19]} {[%emt 00:00:07]} Nf7 {[%clk 00:28:32]} {[%emt 00:00:41]} 27.
a4 {[%clk 00:19:14]} {[%emt 00:11:35]} 1/2-1/2